bitfinex-derivatives/quotes_BNBF0:USTF0_20251010
["timestamp","ask_amount","ask_price","bid_price","bid_amount"]
[1760054402349,0.19750226,1255.1,1255.0,0.52254391]
[1760054406550,0.19750226,1255.1,1255.0,1.70285445]
[1760054407545,0.19750226,1255.1,1255.0,0.52254391]
[1760054410252,0.19750226,1255.1,1255.0,1.70346476]
[1760054410450,0.19750226,1255.1,1255.0,0.52254391]
[1760054413154,0.19750226,1255.1,1255.0,1.70370959]
[1760054413650,0.19750226,1255.1,1255.0,0.52254391]
[1760054413854,0.19750226,1255.1,1255.0,1.70339669]
[1760054415755,0.19750226,1255.1,1255.0,0.52254391]
[1760054418454,0.19750226,1255.1,1255.0,1.70339669]
[1760054420165,0.19750226,1255.1,1255.0,0.52254391]
[1760054421061,0.19750226,1255.1,1255.0,1.50738241]
[1760054422064,0.19750226,1255.1,1255.0,1.31041471]
[1760054423662,0.19750226,1255.1,1255.0,0.52254391]
[1760054425965,0.19750226,1255.1,1255.0,1.31041471]
[1760054428574,0.19750226,1255.1,1255.0,0.52254391]
[1760054430570,0.19750226,1255.1,1255.0,1.70339669]
[1760054431273,0.19750226,1255.1,1255.0,1.310367]
[1760054431477,0.19750226,1255.1,1255.0,0.71958529]
[1760054431776,0.39519799,1255.1,1255.0,1.11386313]
[1760054432276,0.19750226,1255.1,1255.0,1.11386313]
[1760054432576,0.19750226,1255.1,1255.0,0.52254391]
[1760054438584,0.39543499,1255.1,1255.0,0.52254391]
[1760054442885,0.19750226,1255.1,1255.0,0.52254391]
[1760054443185,0.19750226,1255.1,1255.0,0.71958529]
[1760054443880,0.19750226,1255.1,1255.0,1.30929429]
[1760054444988,0.19750226,1255.1,1255.0,0.71958529]
[1760054445183,0.19750226,1255.1,1255.0,1.30926787]
[1760054447486,0.19750226,1255.1,1255.0,0.71958529]
[1760054447786,0.19750226,1255.1,1255.0,0.52254391]
[1760054448690,0.19750226,1255.1,1255.0,1.310367]
[1760054448889,0.19750226,1255.1,1255.0,0.52254391]
[1760054449588,0.19750226,1255.1,1255.0,1.30839019]
[1760054450189,0.19750226,1255.1,1255.0,0.52254391]
[1760054463814,0.19750226,1255.1,1255.0,1.11171162]
[1760054464413,0.19750226,1255.1,1255.0,1.30817202]
[1760054464810,0.19750226,1255.1,1255.0,0.52254391]
[1760054483030,0.39542304,1255.1,1255.0,0.52254391]
[1760054483433,0.19750226,1255.1,1255.0,0.52254391]
[1760054487538,0.39545864,1255.1,1255.0,0.52254391]
[1760054493144,0.39545864,1255.1,1255.0,1.11171162]
[1760054493441,0.19750226,1255.1,1255.0,1.11171162]
[1760054494045,0.19750226,1255.1,1255.0,0.52254391]
[1760054494241,0.19750226,1255.1,1255.0,1.30839019]
[1760054495646,0.19750226,1255.1,1255.0,1.70339669]
[1760054497044,0.19750226,1255.1,1255.0,0.52254391]
[1760054508151,0.19750226,1255.1,1255.0,1.69626306]
[1760054508350,0.19750226,1255.1,1255.0,0.52254391]
[1760054509850,0.19750226,1255.1,1255.0,1.30541368]
[1760054510250,0.19750226,1255.1,1255.0,0.52254391]
[1760054527267,0.19750226,1255.1,1255.0,1.69599232]
[1760054529666,0.19750226,1255.1,1255.0,0.52254391]
[1760054529965,0.19750226,1255.1,1255.0,1.69687704]
[1760054531669,0.19750226,1255.1,1255.0,0.52254391]
[1760054532169,0.19750226,1255.1,1255.0,1.69626861]
[1760054533769,0.19750226,1255.1,1255.0,0.52254391]
[1760054534065,0.19750226,1255.1,1255.0,1.69626861]
[1760054534370,0.19750226,1255.1,1255.0,0.52254391]
[1760054535070,0.19750226,1255.1,1255.0,2.48938112]
[1760054536069,0.19750226,1255.1,1255.0,0.52254391]
[1760054545080,0.19750226,1255.1,1255.0,2.47213735]
[1760054545675,0.19750226,1255.1,1255.0,0.52254391]
[1760054546474,0.19750226,1255.1,1255.0,2.47140366]
[1760054548380,0.19750226,1255.1,1255.0,0.52254391]
[1760054556193,0.19750226,1255.1,1255.0,2.4681986]
[1760054557692,0.19750226,1255.1,1255.0,0.52254391]
[1760054561097,0.05902649,1255.1,1255.0,0.52254391]
[1760054564099,0.37855402,1255.4,1255.0,0.52254391]
[1760054564304,0.19795638,1257.5,1255.1,0.52254391]
[1760054564504,0.19795638,1257.5,1257.3,0.19396366]
[1760054564701,1.97695736,1262.6,1257.4,0.52254391]
[1760054564901,1.97695736,1262.6,1257.5,0.52254391]
[1760054565102,1.97695736,1262.9,1257.6,0.52254391]
[1760054565401,1.97695736,1262.9,1257.7,0.52254391]
[1760054565601,0.13818928,1261.4,1257.8,0.52254391]
[1760054565805,0.13818928,1261.4,1257.9,0.52254391]
[1760054566006,0.13818928,1261.4,1258.0,0.52254391]
[1760054566206,0.13818928,1261.4,1257.6,0.58189098]
[1760054566408,0.19549254,1257.8,1257.7,0.51830817]
[1760054568409,0.19549254,1257.9,1257.7,0.51830817]
[1760054568607,0.19549254,1257.9,1257.8,0.51830817]
[1760054568806,0.19549254,1258.0,1257.8,0.51830817]
[1760054569007,0.19549254,1258.0,1257.9,0.51830817]
[1760054571808,0.704,1260.0,1257.9,0.51830817]
[1760054572011,0.704,1260.0,1258.0,0.51830817]
[1760054572212,0.704,1260.0,1258.1,0.51830817]
[1760054572512,0.704,1260.0,1258.2,0.51830817]
[1760054572711,0.704,1260.0,1257.7,0.19396366]
[1760054572909,0.1950925,1257.9,1257.8,0.51747621]
[1760054575417,0.1950925,1257.9,1257.8,0.5172932]
[1760054581120,0.1950925,1257.9,1257.8,0.51772014]
[1760054590034,0.1950925,1258.0,1257.8,0.51772014]
[1760054590329,0.1950925,1258.0,1257.9,0.51772014]
[1760054596044,0.715,1259.6,1257.9,0.51772014]
[1760054596343,0.715,1259.6,1258.0,0.52158052]
[1760054596542,0.715,1259.6,1257.4,0.77406686]
[1760054596742,0.19642539,1257.6,1257.5,0.52162829]
[1760054597443,0.19642539,1257.7,1257.5,0.52162829]
[1760054597743,0.19642539,1257.7,1257.6,0.52162829]
[1760054599044,0.19642539,1257.8,1257.6,1.29569515]
[1760054599240,0.19642539,1257.8,1257.7,0.52162829]
[1760054600345,0.19642539,1257.8,1257.7,1.10173149]
[1760054601045,0.19642539,1257.9,1257.7,1.10173149]
[1760054601246,0.19642539,1257.9,1257.8,0.52162829]
[1760054604447,0.19642539,1258.0,1257.8,1.10173149]
[1760054604647,0.19642539,1258.0,1257.9,0.52162829]
[1760054605447,0.19642539,1258.1,1257.9,1.10173149]
[1760054605648,0.19642539,1258.1,1258.0,0.52162829]
[1760054605943,0.724,1259.3,1258.0,0.52162829]
[1760054606147,0.724,1259.3,1258.1,0.52162829]
[1760054606448,0.724,1259.3,1258.2,0.52162829]
[1760054606646,0.724,1259.3,1258.3,0.52162829]
[1760054606946,0.724,1259.3,1257.8,0.77406686]
[1760054607147,0.19707236,1258.0,1257.9,0.52342043]
[1760054614854,0.724,1259.3,1257.9,0.52342043]
[1760054615052,0.724,1259.3,1258.0,0.52342043]
[1760054615254,0.724,1259.3,1258.1,0.52342043]
[1760054615454,0.724,1259.3,1258.2,0.52342043]
[1760054615657,0.724,1259.3,1257.6,0.19396366]
[1760054615857,0.19758701,1257.8,1257.7,0.52620919]
[1760054616356,0.19758701,1257.9,1257.7,1.10631239]
[1760054616654,0.19758701,1257.9,1257.8,0.52620919]
[1760054617452,0.19758701,1258.0,1257.8,1.10631239]
[1760054617652,0.19758701,1258.0,1257.9,0.52620919]
[1760054618154,0.19758701,1258.0,1257.9,1.10631239]
[1760054618552,0.19758701,1258.1,1257.9,1.10631239]
[1760054618753,0.19758701,1258.1,1258.0,0.52620919]
[1760054619057,0.724,1259.3,1258.0,0.52620919]
[1760054619256,0.724,1259.3,1258.1,0.52620919]
[1760054619453,0.724,1259.3,1258.2,0.52620919]
[1760054619657,0.724,1259.3,1258.3,0.52620919]
[1760054619854,0.724,1259.3,1258.4,0.52620919]
[1760054620153,0.724,1259.3,1257.9,0.5801032]
[1760054620154,0.724,1259.3,1258.5,0.52620919]
[1760054620353,0.724,1259.3,1258.6,0.52620919]
[1760054620657,0.724,1259.3,1257.9,0.5801032]
[1760054620854,0.19791791,1258.1,1258.0,0.52666728]
[1760054621960,0.724,1259.3,1258.0,0.52666728]
[1760054622254,0.724,1259.3,1258.1,0.52666728]
[1760054622453,0.724,1259.3,1258.2,0.52666728]
[1760054622653,0.724,1259.3,1258.3,0.52666728]
[1760054622858,0.724,1259.3,1258.4,0.52666728]
[1760054623158,0.724,1259.3,1258.5,0.52666728]
[1760054623454,0.724,1259.3,1258.6,0.52666728]
[1760054623758,0.724,1259.3,1257.9,0.5801032]
[1760054624058,0.19805685,1258.1,1258.0,1.10715627]
[1760054624759,0.19805685,1258.1,1258.0,0.52705307]
[1760054625455,0.19805685,1258.2,1258.0,0.52705307]
[1760054625654,0.724,1259.3,1258.1,0.52705307]
[1760054625859,0.724,1259.3,1258.3,0.58903407]
[1760054626154,0.724,1259.3,1258.4,0.52705307]
[1760054626358,0.724,1259.3,1258.5,0.52705307]
[1760054626559,0.724,1259.3,1258.6,0.52705307]
[1760054626855,0.724,1259.3,1258.7,0.52705307]
[1760054627154,0.724,1259.3,1258.2,0.58903407]
[1760054627354,0.724,1259.3,1258.3,0.52709924]
[1760054627554,0.724,1259.3,1258.4,0.52709924]
[1760054627760,0.724,1259.3,1258.5,0.52709924]
[1760054627956,0.724,1259.3,1258.6,0.52709924]
[1760054628155,0.724,1259.3,1257.8,0.58903407]
[1760054628356,0.19813171,1258.0,1257.9,0.52730523]
[1760054629462,0.19813171,1258.1,1257.9,0.52730523]
[1760054629660,0.19813171,1258.1,1258.0,1.11644571]
[1760054631057,0.724,1259.3,1258.0,1.11644571]
[1760054631261,0.724,1259.3,1258.1,0.52730523]
[1760054631460,0.724,1259.3,1258.2,0.52730523]
[1760054631660,0.724,1259.3,1258.3,0.52730523]
[1760054631856,0.724,1259.3,1258.0,0.58914048]
[1760054631857,0.724,1259.3,1258.4,0.52730523]
[1760054632061,0.724,1259.3,1258.5,0.52730523]
[1760054632256,0.724,1259.3,1258.6,0.52730523]
[1760054632459,0.724,1259.3,1258.0,0.58914048]
[1760054632657,0.724,1259.3,1258.1,1.11634306]
[1760054632856,0.724,1259.3,1258.2,0.52720258]
[1760054633060,0.724,1259.3,1258.3,0.52720258]
[1760054633364,0.724,1259.3,1258.4,0.52720258]
[1760054633658,0.724,1259.3,1258.5,0.52720258]
[1760054633861,0.724,1259.3,1258.6,0.52720258]
[1760054634061,0.724,1259.3,1258.1,0.58914048]
[1760054634261,0.724,1259.3,1258.2,0.5272717]
[1760054634458,0.724,1259.3,1258.3,0.5272717]
[1760054634757,0.724,1259.3,1258.4,0.5272717]
[1760054635060,0.724,1259.3,1258.5,0.5272717]
[1760054635361,0.724,1259.3,1258.6,0.5272717]
[1760054635558,0.724,1259.3,1258.1,0.58914048]
[1760054635763,0.724,1259.3,1258.2,0.52730461]
[1760054636063,0.724,1259.3,1258.3,0.52730461]
[1760054636261,0.724,1259.3,1258.4,0.52730461]
[1760054636460,0.724,1259.3,1258.5,0.52730461]
[1760054636662,0.724,1259.3,1258.6,0.52730461]
[1760054636859,0.724,1259.3,1258.7,0.52730461]
[1760054637060,0.724,1259.3,1258.1,0.58914048]
[1760054637264,0.724,1259.3,1258.2,0.52735519]
[1760054637464,0.724,1259.3,1258.3,0.52735519]
[1760054637761,0.724,1259.3,1258.4,0.52735519]
[1760054637964,0.724,1259.3,1258.5,0.52735519]
[1760054638162,0.724,1259.3,1258.6,0.52735519]
[1760054638365,0.724,1259.3,1258.1,0.58914048]
[1760054638666,0.724,1259.3,1258.2,0.52720986]
[1760054638859,0.724,1259.3,1258.1,0.58914048]
[1760054638860,0.724,1259.3,1258.3,0.52720986]
[1760054639059,0.724,1259.3,1258.4,0.52720986]
[1760054639264,0.724,1259.3,1258.5,0.52720986]
[1760054639561,0.724,1259.3,1257.9,0.58914048]
[1760054639761,0.724,1259.3,1258.0,0.52794768]
[1760054639963,0.724,1259.3,1258.1,0.52794768]
[1760054640162,0.724,1259.3,1258.2,0.52794768]
[1760054640362,0.724,1259.3,1258.3,0.52794768]
[1760054640566,0.724,1259.3,1257.8,0.58914048]
[1760054640761,2.7677403,1260.8,1257.9,0.5279933]
[1760054640962,2.7677403,1260.8,1258.0,0.5279933]
[1760054641165,2.7677403,1260.8,1258.1,0.5279933]
[1760054641468,1.97695736,1261.0,1258.2,0.5279933]
[1760054641666,1.97695736,1261.0,1258.3,0.5279933]
[1760054641961,1.97695736,1261.0,1257.8,0.58914048]
[1760054642164,1.97695736,1261.0,1257.9,0.52782911]
[1760054642365,1.97695736,1261.0,1258.0,0.52782911]
[1760054642564,1.97695736,1261.0,1258.1,0.52782911]
[1760054642762,0.651,1260.9,1258.2,0.52782911]
[1760054642964,0.651,1260.9,1258.3,0.52782911]
[1760054643164,0.651,1260.9,1257.8,0.58914048]
[1760054643364,0.651,1260.9,1257.9,0.52778567]
[1760054643568,0.651,1260.9,1258.0,0.52778567]
[1760054643865,0.651,1260.9,1258.1,0.52778567]
[1760054644066,0.651,1260.9,1258.2,0.52778567]
[1760054644267,1.97695736,1260.0,1257.5,0.58914048]
[1760054644567,1.97695736,1260.7,1257.6,1.11711861]
[1760054644761,1.97695736,1260.7,1257.7,0.52797813]
[1760054644963,1.97695736,1260.7,1257.8,0.52797813]
[1760054645166,1.97695736,1260.3,1257.9,1.11711861]
[1760054645462,1.97695736,1260.3,1258.0,0.52797813]
[1760054645663,1.97695736,1260.3,1258.1,0.52797813]
[1760054645866,1.97695736,1260.6,1258.2,0.52797813]
[1760054646067,1.97695736,1260.6,1258.3,0.52797813]
[1760054646263,1.97695736,1260.6,1257.8,0.58914048]
[1760054646463,1.97695736,1260.6,1257.9,0.52790255]
[1760054646767,1.97695736,1260.6,1258.0,0.52790255]
[1760054647066,1.97695736,1260.6,1258.1,0.52790255]
[1760054647267,1.97695736,1260.6,1258.2,0.52790255]
[1760054647562,1.97695736,1260.6,1258.3,0.52790255]
[1760054647762,1.97695736,1260.6,1257.6,0.58914048]
[1760054647967,0.651,1260.9,1257.7,0.52797202]
[1760054648265,0.651,1260.9,1257.8,0.52797202]
[1760054648468,0.651,1260.9,1257.9,0.52797202]
[1760054648669,0.651,1260.9,1258.0,0.52797202]
[1760054648968,1.97695736,1260.4,1257.5,0.58914048]
[1760054649170,1.97695736,1260.4,1257.6,0.52814804]
[1760054649369,1.97695736,1260.5,1257.7,0.52814804]
[1760054649566,1.97695736,1260.5,1257.8,0.52814804]
[1760054649865,1.97695736,1260.5,1257.9,0.52814804]
[1760054650064,1.97695736,1260.5,1257.4,0.58914048]
[1760054650263,1.97695736,1260.5,1257.5,1.11711032]
[1760054650463,1.97695736,1260.6,1257.6,0.52796984]
[1760054650668,1.97695736,1260.6,1257.7,0.52796984]
[1760054650868,1.97695736,1260.4,1257.8,0.52796984]
[1760054651069,1.97695736,1260.4,1257.9,0.52796984]
[1760054651364,1.97695736,1260.4,1258.0,0.52796984]
[1760054651568,1.97695736,1260.1,1257.6,0.58914048]
[1760054651767,1.97695736,1260.1,1257.7,0.52764944]
[1760054652068,1.97695736,1260.2,1257.8,0.52764944]
[1760054652264,1.97695736,1260.2,1257.9,0.52764944]
[1760054652468,1.97695736,1260.2,1258.0,0.52764944]
[1760054652668,1.97695736,1260.2,1257.6,0.58914048]
[1760054652866,1.97695736,1260.2,1257.7,0.52761098]
[1760054653167,1.97695736,1260.2,1257.8,0.52761098]
[1760054653370,1.97695736,1260.2,1257.9,0.52761098]
[1760054653665,1.97695736,1260.2,1258.0,0.52761098]
[1760054653870,1.97695736,1260.2,1257.6,0.58914048]
[1760054654166,2.7677403,1260.7,1257.7,0.52756764]
[1760054654368,2.7677403,1260.7,1257.8,0.52756764]
[1760054654568,2.7677403,1260.7,1257.9,0.52756764]
[1760054654766,2.7677403,1260.7,1258.0,0.52756764]
[1760054654964,0.651,1260.9,1258.1,0.52756764]
[1760054655168,0.651,1260.9,1257.6,0.58914048]
[1760054655169,0.651,1260.9,1258.2,0.52756764]
[1760054655368,0.651,1260.9,1257.6,0.58914048]
[1760054655572,0.19780313,1257.8,1257.7,0.52740952]
[1760054656566,0.651,1260.9,1257.7,0.52740952]
[1760054656766,0.651,1260.9,1257.8,0.52740952]
[1760054657070,0.651,1260.9,1257.9,0.52740952]
[1760054657271,0.651,1260.9,1258.0,0.52740952]
[1760054657470,1.97695736,1260.6,1258.1,0.52740952]
[1760054657670,1.97695736,1260.6,1258.2,0.52740952]
[1760054657868,1.97695736,1260.6,1257.7,0.58914048]
[1760054658069,1.97695736,1260.7,1257.8,0.52704573]
[1760054658271,1.97695736,1260.7,1257.9,0.52704573]
[1760054658571,1.97695736,1260.7,1258.0,0.52704573]
[1760054658769,1.97695736,1260.7,1258.1,0.52704573]
[1760054658968,1.97695736,1260.7,1258.2,0.52704573]
[1760054659171,0.651,1260.9,1258.3,0.52704573]
[1760054659369,0.651,1260.9,1258.4,0.52695357]
[1760054659667,0.651,1260.9,1257.6,0.78310414]
[1760054659668,0.651,1260.9,1258.5,0.52695357]
[1760054659868,0.651,1260.9,1257.7,0.19396366]
[1760054660173,0.19780388,1258.0,1257.8,0.52683166]
[1760054660472,0.19780388,1258.0,1257.9,0.52683166]
[1760054662573,0.19780388,1258.0,1257.9,1.49664997]
[1760054662774,0.19780388,1258.0,1257.9,0.72079532]
[1760054663269,0.19780388,1258.0,1257.9,0.52683166]
[1760054665473,0.19780388,1258.0,1257.9,1.31042611]
[1760054669075,0.19780388,1258.0,1257.9,0.72273027]
[1760054669570,0.19780388,1258.0,1257.9,0.52683166]
[1760054672677,0.19780388,1258.0,1257.9,1.69061363]
[1760054672877,0.19780388,1258.0,1257.9,0.52683166]
[1760054674381,0.19780388,1258.0,1257.9,1.30833002]
[1760054674676,0.19780388,1258.0,1257.9,0.52683166]
[1760054675381,0.19780388,1258.0,1257.9,1.69061363]
[1760054676182,0.19780388,1258.0,1257.9,0.52683166]
[1760054682487,0.19780388,1258.0,1257.9,1.70176961]
[1760054684990,0.19780388,1258.0,1257.9,0.52683166]
[1760054685291,0.19780388,1258.0,1257.9,1.70176961]
[1760054685489,0.19780388,1258.0,1257.9,0.52683166]
[1760054686591,0.19780388,1258.0,1257.9,1.30860892]
[1760054686791,0.19780388,1258.0,1257.9,0.52683166]
[1760054686986,0.19780388,1258.0,1257.9,1.30926531]
[1760054687391,0.19780388,1258.0,1257.9,0.72244007]
[1760054688493,0.15770681,1258.0,1257.9,0.72244007]
[1760054690091,0.15770681,1258.0,1257.9,0.52683166]
[1760054690294,0.15770681,1258.0,1257.9,1.1136569]
[1760054690990,0.15770681,1258.0,1257.9,1.30860892]
[1760054696796,0.15770681,1258.0,1257.9,1.3088589]
[1760054697092,0.15770681,1258.0,1257.9,0.52683166]
[1760054697293,0.35454372,1258.0,1257.9,0.52683166]
[1760054697797,0.15770681,1258.0,1257.9,0.52683166]
[1760054711116,0.15770681,1258.0,1257.3,0.58652043]
[1760054711312,0.15770681,1258.0,1257.4,0.5273683]
[1760054711612,0.15770681,1258.0,1257.5,0.5273683]
[1760054711816,0.15770681,1258.0,1257.6,0.5273683]
[1760054712017,0.15770681,1258.0,1257.1,0.58652043]
[1760054712211,0.15770681,1258.0,1257.2,0.52747382]
[1760054712413,0.15770681,1258.0,1257.3,0.52747382]
[1760054712613,0.15770681,1258.0,1257.4,0.52747382]
[1760054712812,0.15770681,1258.0,1257.5,0.52747382]
[1760054713015,0.15770681,1258.0,1257.6,0.52747382]
[1760054713315,0.15770681,1258.0,1256.8,0.78202724]
[1760054713519,0.19675939,1257.1,1256.9,0.5273985]
[1760054713721,0.19675939,1257.1,1256.8,0.78202724]
[1760054713722,0.19675939,1257.1,1257.0,0.5273985]
[1760054716320,0.19675939,1257.1,1257.0,1.11391893]
[1760054717120,0.19675939,1257.2,1257.0,1.11391893]
[1760054717320,0.19675939,1257.2,1257.1,0.5273985]
[1760054718718,0.19675939,1257.2,1257.1,1.11391893]
[1760054718918,0.19675939,1257.2,1257.1,0.5273985]
[1760054721719,0.19675939,1257.5,1257.1,0.72290531]
[1760054721924,0.19675939,1257.5,1257.2,1.11272482]
[1760054722118,0.19675939,1257.5,1257.3,0.5273985]
[1760054722322,0.19675939,1257.5,1257.4,0.5273985]
[1760054723926,0.15770681,1258.0,1257.4,0.5273985]
[1760054724125,0.15770681,1258.0,1257.5,0.5273985]
[1760054724429,0.15770681,1258.0,1257.6,0.5273985]
[1760054724722,0.15770681,1258.0,1257.7,0.5273985]
[1760054724927,0.15770681,1258.0,1257.1,0.78083313]
[1760054725123,0.19616931,1257.3,1257.2,0.525392]
[1760054726129,0.15770681,1258.0,1257.2,0.525392]
[1760054726430,0.15770681,1258.0,1257.3,0.525392]
[1760054726729,0.15770681,1258.0,1257.0,0.78083313]
[1760054726730,0.15770681,1258.0,1257.4,0.525392]
[1760054726926,0.15770681,1258.0,1257.5,0.525392]
[1760054727131,0.15770681,1258.0,1257.6,0.525392]
[1760054727331,0.15770681,1258.0,1257.0,0.78083313]
[1760054727531,0.19610078,1257.2,1257.1,0.5253007]
[1760054728632,0.19610078,1257.3,1257.1,0.5253007]
[1760054728828,0.19610078,1257.4,1257.2,0.5253007]
[1760054729031,0.19610078,1257.4,1257.0,0.97728407]
[1760054729032,0.19610078,1257.4,1257.3,1.10998546]
[1760054729728,0.19610078,1257.4,1257.3,0.5253007]
[1760054730127,0.15770681,1258.0,1257.3,0.5253007]
[1760054730327,0.15770681,1258.0,1257.4,0.5253007]
[1760054730531,0.15770681,1258.0,1257.5,0.5253007]
[1760054730729,0.15770681,1258.0,1257.6,0.5253007]
[1760054730933,0.15770681,1258.0,1257.7,0.5253007]
[1760054731133,0.15770681,1258.0,1257.1,0.78019157]
[1760054731428,0.19603024,1257.3,1257.2,0.52497795]
[1760054731832,0.476,1257.9,1257.2,0.52497795]
[1760054732129,0.476,1257.9,1257.3,0.52497795]
[1760054732333,0.476,1257.9,1257.4,0.52497795]
[1760054732628,0.476,1257.9,1257.1,0.58468476]
[1760054732629,0.476,1257.9,1257.5,0.52497795]
[1760054732834,0.476,1257.9,1257.6,0.52497795]
[1760054733035,0.476,1257.9,1257.1,0.58468476]
[1760054733230,0.476,1257.9,1257.2,0.52516032]
[1760054733434,0.476,1257.9,1257.3,0.52516032]
[1760054733634,0.476,1257.9,1257.0,0.19550681]
[1760054733635,0.476,1257.9,1257.4,0.52516032]
[1760054733834,0.476,1257.9,1257.5,0.52516032]
[1760054734034,0.476,1257.9,1257.6,0.52516032]
[1760054734329,0.476,1257.9,1257.7,0.52516032]
[1760054734630,0.476,1257.9,1257.8,0.52516032]
[1760054735637,0.476,1257.9,1257.8,0.52388723]
[1760054748139,0.476,1257.9,1256.9,0.78177726]
[1760054748140,0.476,1257.9,1257.2,0.7801168]
[1760054748344,0.19717606,1257.4,1257.3,0.52691221]
[1760054751048,0.476,1257.9,1257.3,0.52691221]
[1760054751247,0.476,1257.9,1257.4,0.52691221]
[1760054751446,0.476,1257.9,1257.0,0.58460999]
[1760054751647,0.476,1257.9,1257.1,0.52758103]
[1760054751948,0.476,1257.9,1257.2,0.52758103]
[1760054752247,0.476,1257.9,1257.3,0.52758103]
[1760054752543,0.476,1257.9,1257.4,0.52758103]
[1760054752843,0.476,1257.9,1257.5,0.52758103]
[1760054753048,0.476,1257.9,1257.0,0.58460999]
[1760054753344,0.476,1257.9,1257.1,0.52771248]
[1760054753543,0.476,1257.9,1257.2,0.52771248]
[1760054753844,0.15770681,1258.0,1257.3,0.52771248]
[1760054754046,0.15770681,1258.0,1257.4,0.52771248]
[1760054754249,0.15770681,1258.0,1257.0,0.58460999]
[1760054754449,0.15770681,1258.0,1257.1,0.52790301]
[1760054754748,0.15770681,1258.0,1257.2,0.52790301]
[1760054755049,0.15770681,1258.0,1257.3,0.52790301]
[1760054755249,0.15770681,1258.0,1257.4,0.52790301]
[1760054755449,0.15770681,1258.0,1257.5,0.52790301]
[1760054755646,0.15770681,1258.0,1257.1,0.58460999]
[1760054755943,0.15770681,1258.0,1257.2,0.52803827]
[1760054756149,0.15770681,1258.0,1257.3,0.52803827]
[1760054756351,0.15770681,1258.0,1257.4,0.52803827]
[1760054756550,0.15770681,1258.0,1257.5,0.52803827]
[1760054756748,0.15770681,1258.0,1257.6,0.52803827]
[1760054756951,0.15770681,1258.0,1257.1,0.58460999]
[1760054757151,0.15770681,1258.0,1257.2,0.52823006]
[1760054757452,0.15770681,1258.0,1257.3,0.52823006]
[1760054757651,0.15770681,1258.0,1257.4,0.52823006]
[1760054757852,0.15770681,1258.0,1257.5,0.52823006]
[1760054758049,0.15770681,1258.0,1257.6,0.52823006]
[1760054758252,0.15770681,1258.0,1257.7,0.52823006]
[1760054758552,0.15770681,1258.0,1257.8,0.52823006]
[1760054758749,0.15770681,1258.0,1257.9,0.52823006]
[1760054761353,0.15770681,1258.0,1257.2,0.58460999]
[1760054761550,0.19774972,1257.4,1257.3,0.52830312]
[1760054762151,0.19774972,1257.5,1257.3,1.11291311]
[1760054762454,0.15770681,1258.0,1257.4,0.52830312]
[1760054762654,0.15770681,1258.0,1257.5,0.52830312]
[1760054762854,0.15770681,1258.0,1257.6,0.52830312]
[1760054763052,0.15770681,1258.0,1257.3,0.58460999]
[1760054763053,0.15770681,1258.0,1257.7,0.52830312]
[1760054763352,0.15770681,1258.0,1257.8,0.52830312]
[1760054763552,0.15770681,1258.0,1257.9,0.52830312]
[1760054765957,0.29598889,1258.0,1257.9,0.52830312]
[1760054767353,0.15770681,1258.0,1257.9,0.52830312]
[1760054773760,0.35538914,1258.0,1257.9,0.52830312]
[1760054773961,0.35538914,1258.0,1257.9,1.11291311]
[1760054774162,0.35538914,1258.0,1257.9,0.52830312]
[1760054775460,0.15770681,1258.0,1257.9,0.52830312]
[1760054775863,0.15770681,1258.0,1257.9,1.50558719]
[1760054777362,0.15770681,1258.0,1257.9,0.72380993]
[1760054777866,0.15770681,1258.0,1257.9,1.31095887]
[1760054784670,0.15770681,1258.0,1257.9,0.72380993]
[1760054787068,0.15770681,1258.0,1257.9,0.52830312]
[1760054794383,0.15770681,1258.0,1257.3,0.58629978]
[1760054794587,0.19732845,1257.5,1257.4,0.52634569]
[1760054796187,0.15770681,1258.0,1257.4,0.52634569]
[1760054796487,0.15770681,1258.0,1257.5,0.52634569]
[1760054796687,0.15770681,1258.0,1257.6,0.52634569]
[1760054796885,0.15770681,1258.0,1257.7,0.52634569]
[1760054797089,0.15770681,1258.0,1257.3,0.58629978]
[1760054797389,0.15770681,1258.0,1257.4,0.52634956]
[1760054797688,0.15770681,1258.0,1257.5,0.52634956]
[1760054797888,0.15770681,1258.0,1257.6,0.52634956]
[1760054798083,0.15770681,1258.0,1257.7,0.52634956]
[1760054798388,0.15770681,1258.0,1257.8,0.52634956]
[1760054798588,0.15770681,1258.0,1257.2,0.78180659]
[1760054798888,0.19732999,1257.4,1257.3,0.52632257]
[1760054799790,0.15770681,1258.0,1257.3,0.52632257]
[1760054799987,0.15770681,1258.0,1257.4,0.52632257]
[1760054800190,0.15770681,1258.0,1257.5,0.52632257]
[1760054800389,0.15770681,1258.0,1257.6,0.52632257]
[1760054800593,0.15770681,1258.0,1257.7,0.52632257]
[1760054800893,0.15770681,1258.0,1257.8,0.52632257]
[1760054801091,0.15770681,1258.0,1257.1,0.19550681]
[1760054801394,0.19731237,1257.3,1257.2,0.5263449]
[1760054803094,0.19731237,1257.4,1257.2,0.5263449]
[1760054803295,0.19731237,1257.4,1257.3,0.5263449]
[1760054803494,0.35501918,1258.0,1257.3,1.30812216]
[1760054803695,0.35501918,1258.0,1257.7,0.19550681]
[1760054803895,0.35501918,1258.0,1257.8,0.5263449]
[1760054804092,0.19731237,1257.9,1257.7,0.19550681]
[1760054804296,0.19731237,1257.9,1257.8,0.52564205]
[1760054804490,0.35501918,1258.0,1257.8,1.11220795]
[1760054804692,0.35501918,1258.0,1257.9,0.52564205]
[1760054809193,0.15770681,1258.0,1257.9,0.52564205]
[1760054810299,0.15770681,1258.0,1257.9,1.30741931]
[1760054810995,0.15770681,1258.0,1257.9,0.52564205]
[1760054816702,0.15770681,1258.0,1257.9,1.69626068]
[1760054818800,0.15770681,1258.0,1257.9,0.52564205]
[1760054820599,0.15770681,1258.0,1257.9,1.30581215]
[1760054822405,0.15770681,1258.0,1257.9,0.52564205]
[1760054825906,0.35464081,1258.0,1257.9,0.52564205]
[1760054826502,0.15770681,1258.0,1257.9,0.52564205]
[1760054828605,0.15770681,1258.0,1257.9,1.11139899]
[1760054828810,0.15770681,1258.0,1257.9,1.30664888]
[1760054833211,0.15770681,1258.0,1257.9,0.72089194]
[1760054833508,0.15770681,1258.0,1257.9,1.30664888]
[1760054834814,0.15770681,1258.0,1257.9,1.11139899]
[1760054835210,0.15770681,1258.0,1257.9,1.30581215]
[1760054836011,0.15770681,1258.0,1257.9,0.52564205]
[1760054837921,0.15770681,1258.0,1256.7,0.19538621]
[1760054838220,0.19698195,1256.9,1256.8,0.52645249]
[1760054839615,0.15770681,1258.0,1256.8,0.52645249]
[1760054839820,0.15770681,1258.0,1256.9,0.52645249]
[1760054840018,0.15770681,1258.0,1257.0,0.52645249]
[1760054840220,0.15770681,1258.0,1257.1,0.52645249]